bitfinex-derivatives/quotes_BTCF0:USTF0_20250928
["timestamp","ask_amount","ask_price","bid_price","bid_amount"]
[1759026127975,1.52161466,109460.0,109450.0,0.3158075]
[1759026129578,1.51961466,109460.0,109450.0,0.3158075]
[1759026130471,1.52161466,109460.0,109450.0,0.3158075]
[1759026130976,1.16081466,109460.0,109450.0,0.3158075]
[1759026131177,1.52161466,109460.0,109450.0,0.3158075]
[1759026133379,1.52161466,109460.0,109450.0,0.1265041]
[1759026133679,1.52161466,109460.0,109450.0,0.3158075]
[1759026133884,1.52161186,109460.0,109450.0,0.3158075]
[1759026139484,1.16081186,109460.0,109450.0,0.3158075]
[1759026139784,1.52161186,109460.0,109450.0,0.3158075]
[1759026144588,1.33230846,109460.0,109450.0,0.37894021]
[1759026145091,1.33230846,109460.0,109450.0,0.1265041]
[1759026147591,0.97150846,109460.0,109450.0,0.1265041]
[1759026147896,1.33230846,109460.0,109450.0,0.1265041]
[1759026154501,1.33230846,109460.0,109450.0,0.37894021]
[1759026154703,1.33230846,109460.0,109450.0,0.1265041]
[1759026155105,1.33230846,109460.0,109450.0,0.37894021]
[1759026155908,1.33214846,109460.0,109450.0,0.1265041]
[1759026156904,0.50438846,109460.0,109450.0,0.1265041]
[1759026157102,0.97134846,109460.0,109450.0,0.37894021]
[1759026157301,1.33214846,109460.0,109450.0,0.37894021]
[1759026157706,1.33218501,109460.0,109450.0,0.37894021]
[1759026160411,0.14362501,109460.0,109450.0,0.37894021]
[1759026160614,0.50442501,109460.0,109450.0,0.37894021]
[1759026160802,1.33214501,109460.0,109450.0,0.37894021]
[1759026161707,0.05231931,109460.0,109450.0,0.37894021]
[1759026162011,0.88003931,109460.0,109450.0,0.37894021]
[1759026162906,0.05231931,109460.0,109450.0,0.37894021]
[1759026163120,0.88003931,109460.0,109450.0,0.37894021]
[1759026164502,0.05231931,109460.0,109450.0,0.37894021]
[1759026164704,0.88003931,109460.0,109450.0,0.73974021]
[1759026165110,0.88003931,109460.0,109450.0,0.37894021]
[1759026166108,0.88003931,109460.0,109450.0,0.73974021]
[1759026166306,0.05231931,109460.0,109450.0,0.73974021]
[1759026166605,0.02984931,109460.0,109450.0,0.73974021]
[1759026166815,0.006,109460.0,109450.0,1.13974021]
[1759026168096,0.006,109460.0,109450.0,1.2111674]
[1759026168303,0.003,109460.0,109450.0,1.2111674]
[1759026168503,0.004,109460.0,109450.0,1.2111674]
[1759026170009,0.002,109460.0,109450.0,1.2111674]
[1759026170308,0.002,109460.0,109450.0,2.0388474]
[1759026170901,0.002,109460.0,109450.0,1.2111674]
[1759026171206,0.002,109460.0,109450.0,2.0388074]
[1759026172608,0.002,109460.0,109450.0,1.2111674]
[1759026173109,0.002,109460.0,109450.0,2.0388074]
[1759026173913,0.002,109460.0,109450.0,1.2111674]
[1759026174213,0.002,109460.0,109450.0,2.0388074]
[1759026176017,0.002,109460.0,109450.0,1.2111674]
[1759026176309,0.002,109460.0,109450.0,2.0387674]
[1759026186216,0.002,109460.0,109450.0,1.2111674]
[1759026186718,0.002,109460.0,109450.0,2.0386874]
[1759026188721,0.002,109460.0,109450.0,1.2111674]
[1759026189019,0.002,109460.0,109450.0,2.0386874]
[1759026189923,0.002,109460.0,109450.0,1.2111674]
[1759026190217,0.002,109460.0,109450.0,2.0386874]
[1759026202330,0.001,109460.0,109450.0,2.0386874]
[1759026202629,0.3608,109480.0,109470.0,0.1255474]
[1759026202630,0.38224,109480.0,109470.0,0.1255474]
[1759026202827,0.4060352,109480.0,109470.0,0.37798351]
[1759026204029,0.4090352,109480.0,109470.0,0.37798351]
[1759026204930,0.4090352,109480.0,109470.0,0.38720665]
[1759026205132,0.4120352,109480.0,109470.0,0.38720665]
[1759026206329,0.0512352,109480.0,109470.0,0.38720665]
[1759026206530,0.0512352,109480.0,109470.0,0.32399931]
[1759026207334,0.1425243,109480.0,109470.0,0.32399931]
[1759026217337,0.1425243,109480.0,109470.0,0.51322808]
[1759026225336,0.1210843,109480.0,109470.0,0.51322808]
[1759026225738,0.1425243,109480.0,109470.0,0.51322808]
[1759026228238,0.1425243,109480.0,109470.0,0.51322808]
[1759026235746,0.0512352,109480.0,109470.0,0.51322808]
[1759026236139,0.02744,109480.0,109470.0,0.51322808]
[1759026238842,0.02144,109480.0,109470.0,0.51322808]
[1759026239044,0.02344,109480.0,109470.0,0.51322808]
[1759026239741,0.002,109480.0,109470.0,0.51322808]
[1759026239941,0.001,109480.0,109470.0,0.51322808]
[1759026240244,0.002,109480.0,109470.0,0.51322808]
[1759026240445,0.002,109480.0,109470.0,1.34030808]
[1759026240748,0.002,109480.0,109470.0,0.51322808]
[1759026240949,0.002,109480.0,109470.0,1.34030808]
[1759026241952,0.002,109480.0,109470.0,0.51322808]
[1759026242151,0.02314,109480.0,109470.0,1.34030808]
[1759026242350,0.02314,109480.0,109470.0,0.51322808]
[1759026242552,0.02314,109480.0,109470.0,1.34030808]
[1759026243649,0.02314,109480.0,109470.0,0.51322808]
[1759026244152,0.02314,109480.0,109470.0,1.34026808]
[1759026248453,0.04694129,109480.0,109470.0,1.34026808]
[1759026248849,0.04694129,109480.0,109470.0,0.13477054]
[1759026249150,0.04694129,109480.0,109470.0,1.34026808]
[1759026250756,0.04694129,109480.0,109470.0,0.13477054]
[1759026250957,0.04694129,109480.0,109470.0,1.34022808]
[1759026256359,0.13823039,109480.0,109470.0,0.51322808]
[1759026256661,0.13823039,109480.0,109470.0,1.34018808]
[1759026258459,0.1144291,109480.0,109470.0,1.34018808]
[1759026260458,0.13821206,109480.0,109470.0,1.34018808]
[1759026261259,0.138212,109480.0,109470.0,1.34018808]
[1759026261861,0.137212,109480.0,109470.0,1.34018808]
[1759026262055,0.137212,109480.0,109470.0,1.34118808]
[1759026262656,0.137212,109480.0,109470.0,1.34018808]
[1759026262853,0.138212,109480.0,109470.0,1.34018808]
[1759026264160,0.1144291,109480.0,109470.0,1.34018808]
[1759026264461,0.13821267,109480.0,109470.0,1.34018808]
[1759026265363,0.13721267,109480.0,109470.0,1.34018808]
[1759026265553,0.13721267,109480.0,109470.0,1.34118808]
[1759026265750,0.13621267,109480.0,109470.0,1.34218808]
[1759026266262,0.13621267,109480.0,109470.0,1.34118808]
[1759026266458,0.13721267,109480.0,109470.0,1.34118808]
[1759026266657,0.13721267,109480.0,109470.0,1.21501327]
[1759026267256,0.13821267,109480.0,109470.0,1.21401327]
[1759026267562,0.04692357,109480.0,109470.0,1.21401327]
[1759026268164,0.13821267,109480.0,109470.0,1.21401327]
[1759026269967,0.04692357,109480.0,109470.0,1.21401327]
[1759026271269,0.02578357,109480.0,109470.0,1.21401327]
[1759026273472,0.02578357,109480.0,109470.0,0.37783013]
[1759026273766,0.7524754,109480.0,109470.0,0.03425]
[1759026273957,1.1640954,109480.0,109470.0,0.02119]
[1759026274770,0.1136174,109470.0,109460.0,0.1274851]
[1759026274964,0.49820097,109470.0,109460.0,0.1274851]
[1759026276070,0.49820097,109470.0,109460.0,0.1284851]
[1759026276370,0.49820097,109470.0,109460.0,0.38076783]
[1759026276766,0.49820097,109470.0,109460.0,0.38176783]
[1759026278675,0.4744174,109470.0,109460.0,0.38176783]
[1759026279275,0.48342738,109470.0,109460.0,0.38176783]
[1759026282374,0.4744174,109470.0,109460.0,0.38176783]
[1759026283671,0.50446431,109470.0,109460.0,0.03818]
[1759026283877,1.19016022,109470.0,109460.0,0.002]
[1759026285073,0.93787749,109470.0,109460.0,0.002]
[1759026285272,0.92820749,109470.0,109460.0,0.02512]
[1759026285467,1.75500749,109470.0,109460.0,0.02512]
[1759026285775,1.76467749,109470.0,109460.0,0.02512]
[1759026285975,0.93787749,109470.0,109460.0,0.1164257]
[1759026286173,1.7460044,109470.0,109460.0,0.1294657]
[1759026287478,0.9192044,109470.0,109460.0,0.38174843]
[1759026287678,0.40686318,109470.0,109460.0,0.38174843]
[1759026287883,0.38312,109470.0,109460.0,0.38174843]
[1759026288179,1.20992,109470.0,109460.0,0.38174843]
[1759026288673,0.38312,109470.0,109460.0,0.38174843]
[1759026288880,1.20992,109470.0,109460.0,0.38174843]
[1759026289475,1.20996,109470.0,109460.0,0.38174843]
[1759026289877,0.87288132,109470.0,109460.0,0.38174843]
[1759026290077,0.84916,109470.0,109460.0,0.38174843]
[1759026292793,0.02232,109470.0,109460.0,0.38174843]
[1759026293082,0.02211,109480.0,109470.0,0.1279875]
[1759026293272,0.72103,109480.0,109470.0,0.38027023]
[1759026294281,0.84891,109480.0,109470.0,0.38027023]
[1759026294478,0.3608,109490.0,109470.0,0.78027023]
[1759026294684,0.04236707,109510.0,109500.0,0.1279625]
[1759026294685,0.38291,109510.0,109500.0,0.1279625]
[1759026294880,1.23339254,109510.0,109500.0,0.38024523]
[1759026295081,0.40663254,109510.0,109500.0,0.38024523]
[1759026295277,1.23339254,109510.0,109500.0,0.38024523]
[1759026295478,0.40663254,109510.0,109500.0,0.38024523]
[1759026295983,1.23839254,109510.0,109500.0,0.38024523]
[1759026296184,1.24139254,109510.0,109500.0,0.38024523]
[1759026296784,0.41263254,109510.0,109500.0,0.38024523]
[1759026296979,1.23939254,109510.0,109500.0,0.38024523]
[1759026297382,1.23939254,109510.0,109500.0,0.1279625]
[1759026297587,1.33065674,109510.0,109500.0,0.38024523]
[1759026299885,0.96985674,109510.0,109500.0,0.38024523]
[1759026300486,0.87859254,109510.0,109500.0,0.38024523]
[1759026301788,0.87847254,109510.0,109500.0,0.38024523]
[1759026301988,0.85475,109510.0,109500.0,0.38024523]
[1759026302689,0.9460142,109510.0,109500.0,0.38024523]
[1759026306690,1.3068142,109510.0,109500.0,0.38024523]
[1759026312895,1.3068142,109510.0,109500.0,0.1279625]
[1759026313100,1.3068142,109510.0,109500.0,0.38024523]
[1759026313688,1.3066542,109510.0,109500.0,0.38024523]
[1759026313888,0.4801742,109510.0,109500.0,0.38024523]
[1759026314090,1.3066542,109510.0,109500.0,0.38024523]
[1759026314398,0.4801742,109510.0,109500.0,0.38024523]
[1759026314590,1.3066542,109510.0,109500.0,0.38024523]
[1759026315096,1.3303278,109510.0,109500.0,0.38024523]
[1759026315296,0.9695278,109510.0,109500.0,0.38024523]
[1759026315698,0.9458542,109510.0,109500.0,0.38024523]
[1759026316199,0.9695369,109510.0,109500.0,0.38024523]
[1759026318299,0.9675369,109510.0,109500.0,0.38024523]
[1759026318692,0.004,109510.0,109500.0,1.14104523]
[1759026319090,0.002,109510.0,109500.0,1.96752523]
[1759026319899,0.001,109510.0,109500.0,1.96752523]
[1759026320102,0.004,109510.0,109500.0,1.96752523]
[1759026320597,0.003,109510.0,109500.0,1.96752523]
[1759026320798,0.006,109510.0,109500.0,1.96752523]
[1759026321194,0.004,109510.0,109500.0,1.96752523]
[1759026321390,0.001,109510.0,109500.0,1.96752523]
[1759026321598,0.002,109510.0,109500.0,1.96752523]
[1759026322199,0.002,109510.0,109500.0,2.04219072]
[1759026324997,0.002,109510.0,109500.0,1.21571072]
[1759026325197,0.002,109510.0,109500.0,2.04211072]
[1759026326602,0.002,109510.0,109500.0,2.35708074]
[1759026327197,0.002,109510.0,109500.0,1.53068074]
[1759026327397,0.002,109510.0,109500.0,2.35704074]
[1759026328498,0.002,109510.0,109500.0,1.53068074]
[1759026328704,0.002,109510.0,109500.0,2.35704074]
[1759026334897,0.02335,109510.0,109500.0,2.16791649]
[1759026335608,0.02335,109510.0,109500.0,1.34159649]
[1759026335807,0.02335,109510.0,109500.0,2.16787649]
[1759026336907,0.02335,109510.0,109500.0,1.693211]
[1759026337607,0.02335,109510.0,109500.0,0.866931]
[1759026337806,0.02335,109510.0,109500.0,1.693211]
[1759026338909,0.02335,109510.0,109500.0,0.866931]
[1759026339113,0.02335,109510.0,109500.0,1.693211]
[1759026339909,0.1146142,109510.0,109500.0,1.693211]
[1759026340108,0.02335,109510.0,109500.0,1.693211]
[1759026342616,0.02335,109510.0,109500.0,0.866931]
[1759026342813,0.02335,109510.0,109500.0,1.693211]
[1759026348619,0.1146142,109510.0,109500.0,1.693211]
[1759026352023,0.1146142,109510.0,109500.0,1.332411]
[1759026352217,0.1146142,109510.0,109500.0,1.693211]
[1759026366228,0.02335,109510.0,109500.0,1.693211]
[1759026366429,0.002,109510.0,109500.0,1.693211]
[1759026368634,0.0932642,109510.0,109500.0,1.693211]
[1759026369431,0.002,109510.0,109500.0,1.693211]
[1759026370035,0.002,109510.0,109500.0,0.866931]
[1759026370224,0.002,109510.0,109500.0,1.693131]
[1759026372536,0.002,109510.0,109500.0,1.88221525]
[1759026379850,0.002,109510.0,109500.0,1.05601525]
[1759026380041,0.002,109510.0,109500.0,1.88221525]
[1759026382640,0.002,109510.0,109500.0,1.05601525]
[1759026382841,0.002,109510.0,109500.0,2.28221525]
[1759026383051,0.41651707,109540.0,109530.0,0.1271275]
[1759026383351,0.41651707,109540.0,109530.0,0.31621175]
[1759026383352,0.40752705,109540.0,109530.0,0.31621175]
[1759026383543,0.40752705,109540.0,109530.0,0.1271275]
[1759026383740,0.40752705,109540.0,109530.0,0.31621175]
[1759026384250,0.41452705,109540.0,109530.0,0.31621175]
[1759026384449,0.50576625,109540.0,109530.0,0.22496425]
[1759026385952,0.6948505,109540.0,109530.0,0.22496425]
[1759026386355,0.6968505,109540.0,109530.0,0.22496425]
[1759026386551,1.16950283,109540.0,109520.0,0.01309]
[1759026386854,0.1142759,109520.0,109510.0,0.03588]
[1759026387054,0.49878295,109520.0,109510.0,0.37921078]
[1759026387254,0.13798295,109520.0,109510.0,0.37921078]
[1759026388452,0.1142759,109520.0,109510.0,0.37921078]
[1759026388649,0.02302,109520.0,109510.0,0.37921078]
[1759026388853,0.02302,109520.0,109510.0,0.1271442]
[1759026389354,0.02402,109520.0,109510.0,0.1271442]
[1759026389542,0.02502,109520.0,109510.0,0.1271442]
[1759026389747,0.1162759,109520.0,109510.0,0.1271442]
[1759026390254,0.13995739,109520.0,109510.0,0.1271442]
[1759026392057,0.50075739,109520.0,109510.0,0.1271442]
[1759026392358,0.50075739,109520.0,109510.0,0.37921078]
[1759026396053,1.17386917,109520.0,109510.0,0.02279]
[1759026396360,1.16249397,109520.0,109510.0,0.02279]
[1759026397257,0.1142842,109510.0,109500.0,0.1277025]
[1759026397557,0.74778227,109510.0,109500.0,0.02279]
[1759026397751,0.86459091,109510.0,109500.0,0.02279]
[1759026398062,0.1142925,109500.0,109490.0,0.13638818]
[1759026398358,0.1142925,109500.0,109490.0,0.127157]
[1759026398561,0.1132925,109500.0,109490.0,0.127157]
[1759026398859,0.36535908,109500.0,109490.0,0.127157]
[1759026399358,0.1132925,109500.0,109490.0,0.130157]
[1759026399558,0.1122925,109500.0,109490.0,0.130157]
[1759026400565,0.1122925,109500.0,109490.0,0.133157]
[1759026401762,0.1122925,109500.0,109490.0,0.14230582]
[1759026410470,0.1122925,109500.0,109490.0,0.3943724]
[1759026420175,0.02302,109500.0,109490.0,0.3943724]
[1759026420765,0.1142925,109500.0,109490.0,0.3943724]
[1759026424773,0.13794739,109500.0,109490.0,0.3943724]
[1759026427474,0.78177924,109500.0,109490.0,0.02879]
[1759026427672,0.78177924,109500.0,109490.0,0.006]
[1759026427976,0.78177924,109500.0,109490.0,0.02908]
[1759026428176,1.57945397,109500.0,109490.0,0.1340309]
[1759026428374,1.32738739,109500.0,109490.0,0.1340309]
[1759026429180,0.49874739,109500.0,109490.0,0.1340309]
[1759026429377,1.32738739,109500.0,109490.0,0.1340309]
[1759026430180,0.49874739,109500.0,109490.0,0.1340309]
[1759026430381,1.32734739,109500.0,109490.0,0.1340309]
[1759026433684,0.49874739,109500.0,109490.0,0.1340309]
[1759026433883,1.32718739,109500.0,109490.0,0.1340309]
[1759026434284,0.49874739,109500.0,109490.0,0.1340309]
[1759026434486,1.32710739,109500.0,109490.0,0.1340309]
[1759026441089,0.49874739,109500.0,109490.0,0.1340309]
[1759026441292,1.32674739,109500.0,109490.0,0.1340309]
[1759026445991,1.3030925,109500.0,109490.0,0.1340309]
[1759026446291,1.32675864,109500.0,109490.0,0.1340309]
[1759026446690,1.51595039,109500.0,109490.0,0.32322265]
[1759026447187,0.68795039,109500.0,109490.0,0.32322265]
[1759026447391,1.51567039,109500.0,109490.0,0.32322265]
[1759026448998,0.04668614,109500.0,109490.0,0.32322265]
[1759026449290,0.87432614,109500.0,109490.0,0.68402265]
[1759026449482,0.04668614,109500.0,109490.0,0.68402265]
[1759026449687,0.87428614,109500.0,109490.0,0.68402265]
[1759026452698,1.06347789,109500.0,109490.0,0.68402265]
[1759026452993,0.23587789,109500.0,109490.0,0.68402265]
[1759026453194,1.06339789,109500.0,109490.0,0.68402265]
[1759026453392,1.15467049,109500.0,109490.0,0.68402265]
[1759026454195,0.96547874,109500.0,109490.0,0.68402265]
[1759026454398,1.15467049,109500.0,109490.0,0.68402265]
[1759026456294,0.04668614,109500.0,109490.0,0.68402265]
[1759026456499,0.02366614,109500.0,109490.0,1.2732144]
[1759026456802,0.4735859,109520.0,109510.0,0.1257142]
[1759026457100,0.94657262,109520.0,109510.0,0.31490595]
[1759026457301,1.32493262,109520.0,109510.0,0.31490595]
[1759026457505,1.51412437,109520.0,109510.0,0.31490595]
[1759026457994,1.51512437,109520.0,109510.0,0.31490595]
[1759026458798,0.68744437,109520.0,109510.0,0.31490595]
[1759026458987,1.51512437,109520.0,109510.0,0.31490595]
[1759026459494,1.51612437,109520.0,109510.0,0.31490595]
[1759026459898,0.68844437,109520.0,109510.0,0.31490595]
[1759026460101,1.51600437,109520.0,109510.0,0.31490595]
[1759026466800,1.51600437,109520.0,109510.0,0.22364175]
[1759026467797,1.51600437,109520.0,109510.0,0.31490585]
[1759026468901,1.51600437,109520.0,109510.0,0.1257141]
[1759026469203,0.1129441,109510.0,109500.0,0.31456805]
[1759026469396,0.4737441,109510.0,109500.0,0.31456805]
[1759026470204,0.4737441,109510.0,109500.0,0.5037598]
[1759026476503,1.3013441,109510.0,109500.0,0.5037598]
[1759026477806,1.3012241,109510.0,109500.0,0.5037598]
[1759026481215,2.18495245,109510.0,109500.0,0.02105]
[1759026481422,0.1129524,109500.0,109490.0,0.03472]
[1759026481618,0.87578947,109500.0,109490.0,0.03472]
[1759026481824,0.87578947,109500.0,109490.0,0.1263207]
[1759026482220,1.70346947,109500.0,109490.0,0.1263207]
[1759026482519,0.87578947,109500.0,109490.0,0.1283207]
[1759026482721,1.70342947,109500.0,109490.0,0.1303207]
[1759026483324,0.87578947,109500.0,109490.0,0.1303207]
[1759026483620,1.70338947,109500.0,109490.0,0.1303207]
[1759026490129,1.70338947,109500.0,109490.0,0.31951245]
[1759026490335,1.70338947,109500.0,109490.0,0.03904]
[1759026491429,1.70338947,109500.0,109490.0,0.1303207]
[1759026492035,1.70338947,109500.0,109490.0,0.31951245]
[1759026493034,1.70326947,109500.0,109490.0,0.31951245]
[1759026493632,1.34246947,109500.0,109490.0,0.03904]
[1759026493826,0.87578947,109500.0,109490.0,0.004]
[1759026494233,1.70322947,109500.0,109490.0,0.004]
[1759026494733,0.87578947,109500.0,109490.0,0.004]
[1759026494934,0.87578947,109500.0,109490.0,0.02577]
[1759026495636,1.70314947,109500.0,109490.0,0.02577]
[1759026496539,1.72435651,109500.0,109490.0,0.02577]
[1759026499344,1.72435651,109500.0,109490.0,0.004]
[1759026500033,1.72454276,109500.0,109490.0,0.004]
[1759026500238,2.12454276,109500.0,109490.0,0.004]
[1759026502845,2.48534276,109500.0,109490.0,0.004]
[1759026505847,2.46394947,109500.0,109490.0,0.004]
[1759026506051,2.48559465,109500.0,109490.0,0.004]
[1759026508647,2.35954435,109500.0,109490.0,0.004]
[1759026509452,2.33789917,109500.0,109490.0,0.004]
[1759026510050,2.35931753,109500.0,109490.0,0.004]
[1759026517556,2.10698433,109500.0,109490.0,0.004]
[1759026517757,2.35931753,109500.0,109490.0,0.004]
[1759026519460,1.95931753,109500.0,109490.0,0.004]
[1759026519653,1.96031753,109500.0,109490.0,0.004]
[1759026523960,0.87962433,109500.0,109490.0,0.004]
[1759026524161,1.96011753,109500.0,109490.0,0.004]
[1759026524764,1.13195753,109500.0,109490.0,0.004]
[1759026524964,1.11053917,109500.0,109490.0,0.03896]
[1759026525163,1.93869917,109500.0,109490.0,0.03896]
[1759026525763,1.93869917,109500.0,109490.0,0.1302407]
[1759026525964,1.11053917,109500.0,109490.0,0.1302407]
[1759026526152,1.95989136,109500.0,109490.0,0.1302407]
[1759026527964,1.13173136,109500.0,109490.0,0.1302407]
[1759026528169,1.95985136,109500.0,109490.0,0.1302407]
[1759026528361,1.95973136,109500.0,109490.0,0.1302407]
[1759026529366,1.13173136,109500.0,109490.0,0.1302407]
[1759026529568,1.95969136,109500.0,109490.0,0.1302407]
[1759026530367,1.95971383,109500.0,109490.0,0.1302407]
[1759026534474,1.13175383,109500.0,109490.0,0.1302407]
[1759026534770,1.95951383,109500.0,109490.0,0.1302407]
[1759026542777,1.95950939,109500.0,109490.0,0.1302407]
[1759026547874,1.59870939,109500.0,109490.0,0.1302407]
[1759026548678,1.23790939,109500.0,109490.0,0.1302407]
[1759026548878,1.59870939,109500.0,109490.0,0.1302407]
[1759026549179,1.59826939,109500.0,109490.0,0.1302407]
[1759026549578,0.77094939,109500.0,109490.0,0.1302407]
[1759026549779,1.59826939,109500.0,109490.0,0.1302407]
[1759026550079,0.77094939,109500.0,109490.0,0.1302407]
[1759026550281,1.59822939,109500.0,109490.0,0.1302407]
[1759026550481,1.59822939,109500.0,109490.0,0.03896]
[1759026551180,1.59822939,109500.0,109490.0,0.1302407]
[1759026551380,1.34589619,109500.0,109490.0,0.1302407]
[1759026551575,1.59822939,109500.0,109490.0,0.1302407]
[1759026557487,1.59814939,109500.0,109490.0,0.1302407]
[1759026558281,0.51861619,109500.0,109490.0,0.1302407]
[1759026558485,0.77094939,109500.0,109490.0,0.1302407]
[1759026558680,1.59814939,109500.0,109490.0,0.1302407]
[1759026559485,1.5981549,109500.0,109490.0,0.1302407]
[1759026559782,0.40615711,109500.0,109490.0,1.1433739]
[1759026559983,0.04535711,109500.0,109490.0,1.1433739]
[1759026560486,0.02168,109500.0,109490.0,1.1433739]
[1759026563187,0.1129524,109500.0,109490.0,1.1433739]
[1759026565193,0.02168,109500.0,109490.0,1.1433739]
[1759026565379,0.43529823,109510.0,109490.0,1.1433739]
[1759026565380,0.1133381,109520.0,109510.0,0.1267041]
[1759026565579,0.02208,109520.0,109510.0,0.3790373]
[1759026565787,1.2792079,109530.0,109520.0,0.1040257]
[1759026565989,1.32492153,109530.0,109520.0,0.3790289]
[1759026566387,0.87287363,109530.0,109520.0,0.7398289]
[1759026566591,0.87355363,109530.0,109520.0,0.7398289]
[1759026567791,0.96480103,109530.0,109520.0,0.7398289]
[1759026568392,0.9441674,109530.0,109520.0,0.7398289]
[1759026568695,0.9451674,109530.0,109520.0,0.86561344]
[1759026569396,0.9451674,109530.0,109520.0,0.87488124]
[1759026570698,0.9441674,109530.0,109520.0,0.87488124]
[1759026571205,0.9421674,109530.0,109520.0,0.87488124]
[1759026571399,0.9461674,109530.0,109520.0,0.87488124]
[1759026571899,0.9461674,109530.0,109520.0,0.86561344]
[1759026574000,0.9461674,109530.0,109520.0,0.87479856]
[1759026574902,0.9461674,109530.0,109520.0,0.68573969]
[1759026576206,1.13522627,109530.0,109520.0,0.68573969]
[1759026579802,1.13422627,109530.0,109520.0,0.68573969]
[1759026580696,1.13622627,109530.0,109520.0,0.68573969]
[1759026581001,0.9471674,109530.0,109520.0,0.68573969]
[1759026581202,1.13622627,109530.0,109520.0,0.68573969]
[1759026581404,1.13722627,109530.0,109520.0,0.68573969]
[1759026581998,0.02908,109530.0,109520.0,0.87479856]
[1759026582205,0.007,109530.0,109520.0,1.46385743]
[1759026582398,0.007,109530.0,109520.0,1.27479856]
[1759026585001,0.007,109530.0,109520.0,2.10207856]
[1759026585800,0.007,109530.0,109520.0,1.27479856]
[1759026585995,0.007,109530.0,109520.0,2.10203856]
[1759026590605,0.007,109530.0,109520.0,2.10183856]
[1759026592208,0.007,109530.0,109520.0,1.27479856]
[1759026592509,0.0982474,109530.0,109520.0,2.10171856]
[1759026595304,0.12188037,109530.0,109520.0,2.10171856]
[1759026597106,0.12188037,109530.0,109520.0,1.27479856]
[1759026597302,0.12188037,109530.0,109520.0,2.10167856]
[1759026597507,0.12188037,109530.0,109520.0,1.27479856]
[1759026597805,0.12188037,109530.0,109520.0,2.10167856]
[1759026599709,0.12188037,109530.0,109520.0,1.27479856]
[1759026599911,0.12188037,109530.0,109520.0,2.10167856]
[1759026600314,0.12188244,109530.0,109520.0,2.10167856]
[1759026600716,0.03063504,109530.0,109520.0,2.10167856]
[1759026604715,0.007,109530.0,109520.0,2.10167856]
[1759026605813,0.02864072,109530.0,109520.0,2.10167856]
[1759026606113,0.02764072,109530.0,109520.0,2.10167856]
[1759026607413,0.02564072,109530.0,109520.0,2.10167856]
[1759026607610,0.02764072,109530.0,109520.0,2.10167856]
[1759026609917,1.03347031,109560.0,109550.0,0.1258107]
[1759026610109,1.00064546,109560.0,109550.0,0.31486957]
[1759026610316,0.49636546,109560.0,109550.0,0.31486957]
[1759026611014,0.50136546,109560.0,109550.0,0.31486957]
[1759026611218,0.50436546,109560.0,109550.0,0.31486957]
[1759026611817,0.483188,109560.0,109550.0,0.31486957]
[1759026612721,0.5547478,109560.0,109550.0,0.31486957]
[1759026613803,0.4635198,109560.0,109550.0,0.31486957]
[1759026614008,0.39196,109560.0,109550.0,0.31486957]
[1759026614206,0.0992224,109560.0,109550.0,0.50392844]
[1759026614404,0.0992224,109560.0,109550.0,0.31486957]
[1759026614609,0.1223824,109560.0,109550.0,0.31486957]
[1759026615720,0.1193824,109560.0,109550.0,0.32411043]
[1759026616820,0.1173824,109560.0,109550.0,0.32411043]
[1759026617520,0.02616,109560.0,109550.0,0.32411043]
[1759026626116,0.02616,109560.0,109550.0,0.5131693]
[1759026628225,0.02422,109560.0,109550.0,0.5131693]
[1759026628424,0.003,109560.0,109550.0,0.5131693]
[1759026630621,0.003,109560.0,109550.0,0.38696993]
[1759026631129,0.02422,109560.0,109550.0,0.38696993]
[1759026637838,0.003,109560.0,109550.0,0.38696993]
[1759026640534,0.02422,109560.0,109550.0,0.38696993]
[1759026642237,0.04782172,109560.0,109550.0,0.38696993]
[1759026642743,0.02422,109560.0,109550.0,0.38696993]
[1759026642947,0.003,109560.0,109550.0,0.38696993]
[1759026643142,0.02660852,109560.0,109550.0,0.38696993]
[1759026643548,0.04782852,109560.0,109550.0,0.38696993]
[1759026644439,0.02660852,109560.0,109550.0,0.38696993]
[1759026644740,0.04782852,109560.0,109550.0,0.38696993]
[1759026646644,0.13905092,109560.0,109550.0,0.38696993]
[1759026647646,0.04782852,109560.0,109550.0,0.38696993]
[1759026649247,0.04782852,109560.0,109550.0,0.74776993]
[1759026651555,0.02660852,109560.0,109550.0,1.14776993]
[1759026651852,0.003,109560.0,109550.0,1.14776993]
[1759026653151,0.003,109560.0,109550.0,0.89585156]
[1759026653354,0.74984721,109560.0,109550.0,0.03458]
[1759026653558,0.77345867,109560.0,109550.0,0.1258107]
[1759026653748,0.5215403,109560.0,109550.0,0.37772907]
[1759026654056,0.50005386,109560.0,109550.0,0.37772907]
[1759026655766,0.50919927,109560.0,109550.0,0.37772907]
[1759026656764,0.50005386,109560.0,109550.0,0.37772907]
[1759026659961,1.18512874,109560.0,109550.0,0.03458]
[1759026660160,1.16359223,109560.0,109550.0,0.02152]
[1759026662362,0.1126507,109550.0,109540.0,0.1264982]
[1759026662563,0.49706216,109550.0,109540.0,0.1264982]
[1759026663865,0.49706216,109550.0,109540.0,0.37841657]
[1759026664156,0.50006216,109550.0,109540.0,0.37841657]
[1759026665263,0.4764507,109550.0,109540.0,0.37841657]
[1759026668865,0.4764507,109550.0,109540.0,0.1264982]
[1759026669071,0.76162836,109550.0,109540.0,0.0222]
[1759026669466,0.50970999,109550.0,109540.0,0.0222]
[1759026671160,0.50970999,109550.0,109540.0,0.1134391]
[1759026671572,0.50970999,109550.0,109540.0,0.1266791]
[1759026672275,0.14890999,109550.0,109540.0,0.1266791]
[1759026672572,0.50970999,109550.0,109540.0,0.03544]
[1759026674973,0.02217,109530.0,109520.0,0.01277]
[1759026675171,0.4878674,109530.0,109520.0,0.03398]
[1759026675367,1.58923142,109530.0,109520.0,0.02121]
[1759026675773,1.61281209,109530.0,109520.0,0.02121]
[1759026675969,0.1270757,109520.0,109510.0,0.02121]
[1759026676170,0.4878757,109520.0,109510.0,0.1124741]
[1759026676377,0.4858757,109520.0,109510.0,0.1124741]
[1759026676879,0.4838757,109520.0,109510.0,0.1124741]
[1759026677080,0.4838757,109520.0,109510.0,0.02121]
[1759026677282,0.4838757,109520.0,109510.0,0.02521]
[1759026677479,0.4838757,109520.0,109510.0,0.02921]
[1759026678185,0.4838757,109520.0,109510.0,0.1204741]
[1759026682687,0.4838757,109520.0,109510.0,0.1337841]
[1759026684085,0.38297,109520.0,109510.0,0.78570247]
[1759026684275,0.38376,109540.0,109530.0,0.1262874]
[1759026684480,0.38376,109540.0,109530.0,0.37820577]
[1759026691294,0.4749991,109540.0,109530.0,0.37820577]
[1759026692594,0.4749991,109540.0,109530.0,0.31530951]
[1759026698098,0.4749991,109540.0,109530.0,0.1262874]